Cogmind - Beta 15 @@@ ROGUE MODE // 2025.09.01 @ 14:35:27 Player: Bolche Result: Destroyed by Y-45 Defender with Beam Rifle Performance ------------- Evolutions (2) 1000 Regions Visited (3) 600 Robots Destroyed (0) 0 Value Destroyed (0) 0 Prototype IDs (0) 0 Alien Tech Used (0) 0 Bonus (200) 200 TOTAL SCORE: 1800 Bonus ------- Pacifist 200 Cogmind --------- Core Integrity 0/550 Matter 196/300 Energy 100/100 System Corruption 1% Temperature Cool (18) Movement Core (200) Ox3 Location -8/Materials Parts ------- > --- POWER (1) -------- (None) > --- PROPULSION (4) --- (None) > --- UTILITY (4) ------ Medium Storage Unit Improved Terrain Scan Processor > --- WEAPON (2) ------- (None) > --- INVENTORY (10) --- Light Ion Engine Terrain Scanner Small Laser Beam Cannon Beam Cannon Assault Rifle Peak State ------------ > --- POWER ------------ Light Deuterium Engine > --- PROPULSION ------- Light Treads Light Treads Aluminum Leg Airjet > --- UTILITY ---------- Small Storage Unit Medium Storage Unit Improved Terrain Scan Processor Melee Analysis Suite > --- WEAPON ----------- Beam Cannon Assault Rifle > --- INVENTORY -------- Light Ion Engine Light Ion Engine Compact Wheel Compact Wheel Terrain Scanner Small Laser Beam Cannon Beam Cannon Assault Rifle [Rating: 19] Favorites ----------- Power Light Ion Engine Engine Light Ion Engine Propulsion Aluminum Leg Treads Light Treads Leg Aluminum Leg Wheel Compact Wheel Hover Unit Airjet Utility Small Storage Unit Storage Small Storage Unit Processor Improved Terrain Scan Processor Weapon Assault Rifle Energy Cannon Beam Cannon Ballistic Gun Assault Rifle Build | -11 -10 -10 -8 ------- Run | Yrd Mat Sub Mat Slots Evolved 4 | . . . 4 Power . | . . . . Propulsion 2 | . . . 2 Utility 2 | . . . 2 Weapon . | . . . . Parts Attached 17 | 6 2 . 9 Power 3 | 1 . . 2 Engine 3 | 1 . . 2 Core . | . . . . Reactor . | . . . . Propulsion 7 | 2 . . 5 Treads 2 | . . . 2 Leg 2 | 2 . . . Wheel 2 | . . . 2 Hover 1 | . . . 1 Flight . | . . . . Utility 4 | 1 1 . 2 Device . | . . . . Storage 2 | 1 1 . . Processor 2 | . . . 2 Hackware . | . . . . Protection . | . . . . Artifact . | . . . . Weapon 3 | 2 1 . . Energy Gun . | . . . . Energy Cannon 1 | . 1 . . Ballistic Gun 2 | 2 . . . Ballistic Cannon . | . . . . Launcher . | . . . . Special Weapon . | . . . . Impact Weapon . | . . . . Slashing Weapon . | . . . . Piercing Weapon . | . . . . Special Melee Weapon . | . . . . Unidentified Prototypes . | . . . . Parts Lost 13 | . . 1 12 Power 2 | . . . 2 Propulsion 7 | . . 1 6 Utility 2 | . . . 2 Weapon 2 | . . . 2 Highest Loss Streak 11 | . . 1 11 To Critical Strikes . | . . . . Average Backups 7 | 5 8 10 7 Power 1 | . 1 1 1 Propulsion 2 | 3 4 4 1 Utility . | . . 1 1 Weapon 3 | 1 2 4 4 Tool/Special . | . . . . Unused Backups 4 | . . . 4 Power . | . . . . Propulsion . | . . . . Utility 1 | . . . 1 Weapon 3 | . . . 3 Tool/Special . | . . . . Average Slot Usage (%) 84 | . 97 100 74 Engine 9 | . 14 14 6 Treads 7 | . . . 12 Leg 14 | . 28 28 5 Wheel 1 | . . . 2 Hover 2 | . . . 4 Storage 21 | . 25 28 18 Processor 7 | . . . 13 Energy Cannon 7 | . 7 14 5 Ballistic Gun 10 | . 20 14 5 Peak Build Rating 19 | 6 8 8 19 Average Rating 9 | 3 7 7 12 On Entrance 5 | . 6 8 7 Naked Turns . | . . . . Heaviest Build 25 | 12 23 23 25 Greatest Support 40 | 20 20 20 40 Greatest Overweight (x) 4 | 3 1 2 4 Average Overweight (x) 1 | . . 1 1 Largest Inventory Capacity 10 | 8 10 10 10 Average Capacity 9 | 7 9 10 10 Most Carried 10 | 8 10 10 10 Average Carried 7 | 5 8 10 7 Final Capacity 10 | 8 10 10 10 Final Carried 10 | 6 10 10 6 Class Distribution -------------------- 100% | Mutant Dominant Class ---------------- Mutant | -10/Materials Mutant | -10/Subcaves Mutant | -8/Materials Resources | -11 -10 -10 -8 ----------- Run | Yrd Mat Sub Mat Matter Collected 198 | 198 . . . Remotely . | . . . . Salvage Created . | . . . . Parts . | . . . . Haulers Intercepted . | . . . . Recyclers Shooed . | . . . . Parts Field Recycled . | . . . . Retrieved Matter . | . . . . Parts Self-Destructed 2 | . . 2 . Prevented . | . . . . Kills | -11 -10 -10 -8 ------- Run | Yrd Mat Sub Mat Combat Hostiles Destroyed . | . . . . Classes Destroyed . | . . . . Best Kill Streak . | . . . . Combat Bots Only . | . . . . Max Kills in Single Turn . | . . . . Gunslinging . | . . . . Exploded . | . . . . Melee . | . . . . Uniques/NPCs Destroyed . | . . . . Combat | -11 -10 -10 -8 -------- Run | Yrd Mat Sub Mat Hostile Shots Fired 154 | . . 14 140 Missed 39 | . . 3 36 Hits 115 | . . 11 104 Projectile 115 | . . 11 104 Critical Strikes 9 | . . . 9 Damage Taken 1890 | . . 240 1650 Core 582 | . . 21 561 Absorbed by Shields . | . . . . Core Remaining (%) 95 | 100 . 91 . Volleys Fired . | . . . . Largest . | . . . . Hottest . | . . . . Shots Fired . | . . . . Gun . | . . . . Cannon . | . . . . Launcher . | . . . . Special . | . . . . Kinetic . | . . . . Thermal . | . . . . Explosive . | . . . . Electromagnetic . | . . . . Robot Hit Streak . | . . . . Robot Miss Streak . | . . . . Penetration Max . | . . . . Secondary Targets . | . . . . Shots Hit Robots . | . . . . Core Hits 4 | . . . 4 Critical Kills . | . . . . Critical Parts Destroyed . | . . . . Critical Strikes . | . . . . Melee Attacks . | . . . . Impact . | . . . . Slashing . | . . . . Piercing . | . . . . Sneak Attacks . | . . . . Combat Hostiles . | . . . . Follow-up Attacks . | . . . . Damage Inflicted 13 | . . . 13 Guns . | . . . . Cannons . | . . . . Explosions . | . . . . Melee . | . . . . Ramming 13 | . . . 13 Kinetic . | . . . . Thermal . | . . . . Explosive . | . . . . Electromagnetic . | . . . . Impact . | . . . . Slashing . | . . . . Piercing . | . . . . Highest Corruption 1 | . . . 1 Average Corruption 1 | . . . 1 Corruption Purged . | . . . . Corruption Blocked . | . . . . Effects 2 | . . . 2 Message Errors 1 | . . . 1 Matter Fused 1 | . . . 1 Overload Shots . | . . . . Overflow Damage . | . . . . Projectiles . | . . . . Explosions . | . . . . Melee . | . . . . Knockbacks 1 | . . . 1 Impact 1 | . . . 1 Kinetic . | . . . . Secondary . | . . . . Self-Inflicted Damage 6 | . . . 6 Shots . | . . . . Rammed 7 | . . . 7 Targets Rammed 7 | . . . 7 Kicked . | . . . . Crushed . | . . . . Highest Temperature 24 | . . . 24 Average Temperature 10 | . . . 10 Received Heat Transfer 1017 | . . . 1017 Siege Activations . | . . . . Martial Activations . | . . . . Shielding Activations . | . . . . Robots Disrupted . | . . . . Combat Hostiles . | . . . . Robots Corrupted . | . . . . Combat Hostiles . | . . . . Parts Fried . | . . . . Impact Corruptions . | . . . . Robots Melted . | . . . . Combat Hostiles . | . . . . Parts Melted . | . . . . Heat Transferred . | . . . . Parts Sabotaged . | . . . . Parts Stolen . | . . . . Parts Stripped . | . . . . Power Chain Reactions . | . . . . Alert | -11 -10 -10 -8 ------- Run | Yrd Mat Sub Mat Maximum Alert Level . | . . . . Low Security (%) 100 | 100 100 . 100 Level 1 . | . . . . Level 2 . | . . . . Level 3 . | . . . . Level 4 . | . . . . Level 5 . | . . . . High Security . | . . . . Max Security . | . . . . Peak Influence 165 | . . . 165 Initial . | . . . . Average 14 | . . . 23 Influence Increases 180 | . . . 180 Lose Combat Pursuer 180 | . . . 180 Influence Decreases 30 | . . . 30 Time Decay 20 | . . . 20 Lost Part 10 | . . . 10 Squads Dispatched 1 | . . . 1 Investigation . | . . . . Extermination . | . . . . Reinforcement 1 | . . . 1 Assault . | . . . . Garrison . | . . . . Intercept . | . . . . Searches Triggered . | . . . . Construction Impeded . | . . . . Haulers Reinforced . | . . . . Active Scanning Responses . | . . . . Cargo Convoy Interrupts . | . . . . Stealth | -11 -10 -10 -8 --------- Run | Yrd Mat Sub Mat Distress Signals 2 | . . . 2 Communications Jammed . | . . . . Distress Signals . | . . . . Times Spotted 22 | . . 3 19 Peak Tracking Total 18 | . . 3 18 Tactical Retreats 2 | . . . 2 Traps | -11 -10 -10 -8 ------- Run | Yrd Mat Sub Mat Traps Triggered 1 | . . . 1 Indirectly . | . . . . Trap Hack Attempts . | . . . . Triggered . | . . . . Disarmed . | . . . . Reprogrammed . | . . . . Reused . | . . . . Traps Extracted . | . . . . Installed . | . . . . Triggered . | . . . . Machines | -11 -10 -10 -8 ---------- Run | Yrd Mat Sub Mat Machines Disabled . | . . . . Max in Single Turn . | . . . . Machines Repaired . | . . . . Machines Dismantled . | . . . . Machines Sabotaged . | . . . . Overloaded Fab Kills . | . . . . Hacking | -11 -10 -10 -8 --------- Run | Yrd Mat Sub Mat Machines Accessed 1 | . . . 1 Terminals 1 | . . . 1 Fabricators . | . . . . Repair Stations . | . . . . Recycling Units . | . . . . Scanalyzers . | . . . . Garrison Access . | . . . . Total Hacks 1 | . . . 1 Successful . | . . . . Failed 1 | . . . 1 Catastrophic . | . . . . Database Lockouts . | . . . . Manual . | . . . . Terminals 1 | . . . 1 Fabricators . | . . . . Repair Stations . | . . . . Recycling Units . | . . . . Scanalyzers . | . . . . Garrison Access . | . . . . Terminal Hacks . | . . . . Fabricator Hacks . | . . . . Repair Station Hacks . | . . . . Recycling Unit Hacks . | . . . . Scanalyzer . | . . . . Garrison Access Hacks . | . . . . Unauthorized Hacks . | . . . . Terminals . | . . . . Fabricators . | . . . . Repair Stations . | . . . . Recycling Units . | . . . . Scanalyzers . | . . . . Garrison Access . | . . . . Data Cores Recovered . | . . . . Used . | . . . . Hacking Detections . | . . . . Full Trace Events . | . . . . Feedback Events . | . . . . Feedback Blocked . | . . . . Robot Schematics Acquired . | . . . . Robots Built . | . . . . Authchips . | . . . . Time . | . . . . Total Robot Build Rating . | . . . . Part Schematics Acquired . | . . . . Parts Built . | . . . . Authchips . | . . . . Time . | . . . . Total Part Build Rating . | . . . . Parts Repaired . | . . . . Time . | . . . . Parts Recycled . | . . . . Recycled Matter . | . . . . Retrieved Matter . | . . . . Retrieved Components . | . . . . Parts Scanalyzed . | . . . . Part Schematics Acquired . | . . . . Parts Damaged . | . . . . Bothacking | -11 -10 -10 -8 ------------ Run | Yrd Mat Sub Mat Used RIF Installer . | . . . . Robots Hacked . | . . . . Non-combat . | . . . . Combat . | . . . . Robot Hacks Applied . | . . . . Relay Couplers Released . | . . . . Fabnet Peak Effective % . | . . . . Robots Rewired . | . . . . Allies Hacked . | . . . . Hacks Repelled . | . . . . Allies | -11 -10 -10 -8 -------- Run | Yrd Mat Sub Mat Total Allies . | . . . . Largest Group . | . . . . Highest-Rated Group . | . . . . Highest-Rated Ally . | . . . . Total Orders . | . . . . Ally Attacks . | . . . . Total Damage . | . . . . Kills . | . . . . Allies Corrupted . | . . . . Allies Melted . | . . . . Intel | -11 -10 -10 -8 ------- Run | Yrd Mat Sub Mat Active Infowar (turns) . | . . . . Robot Analysis Total . | . . . . Derelict Logs Recovered . | . . . . Drone Launches . | . . . . Drone Recoveries . | . . . . Exploration | -11 -10 -10 -8 ------------- Run | Yrd Mat Sub Mat Turns Passed 575 | 84 95 99 297 Spaces Moved 295 | 55 51 52 137 Core 41 | 23 . . 18 Treads 18 | . . . 18 Legs 135 | 32 51 52 . Wheels 39 | . . . 39 Hover 62 | . . . 62 Flight . | . . . . Fastest Speed 50 | 50 120 190 100 Average Speed 177 | 122 176 195 192 Slowest Speed 290 | 200 190 260 290 Overloaded Moves . | . . . . Propulsion Burnouts . | . . . . Robots Hopped . | . . . . Potential Cave-ins . | . . . . Cave-ins Triggered . | . . . . Exploration Rate (%) 11 | 4 11 8 24 Regions Visited 3 Branch Regions 1 Pre-discovered Areas . | . . . . Known Exits Taken . | . . . . Unknown Exits Taken 3 | 1 1 1 . Scrap Searched . | . . . . Spaces Dug . | . . . . Terrain Destroyed . | . . . . Melee . | . . . . Projectile . | . . . . AOE . | . . . . Terrain Rammed . | . . . . Walls Destroyed . | . . . . Machines Disabled . | . . . . Actions | -11 -10 -10 -8 --------- Run | Yrd Mat Sub Mat Total 338 | 70 56 51 161 Wait 3 | . . . 3 Move 292 | 54 50 51 137 Hop . | . . . . Pick Up 17 | 10 4 . 3 Fast Attach 3 | 2 1 . . Attach 13 | 4 . . 9 Detach 1 | . . . 1 Swap 2 | . 1 . 1 Drop . | . . . . Fire . | . . . . Melee . | . . . . Ram 7 | . . . 7 Kick . | . . . . Crush . | . . . . Escape Stasis . | . . . . Rewire . | . . . . Trap . | . . . . Miscellaneous . | . . . . Route ------- -11/Scrapyard -10/Materials -10/Subcaves -8/Materials History --------- Turn | Location | Event 26 | -11/Scrapyard | Discovered new exit (range 16) 85 | -11/Scrapyard | Entered Materials 173 | -10/Materials | Discovered new exit (range 5) 180 | -10/Materials | Entered Subcaves 193 | -10/Subcaves | A swath of the cavern ceiling suddenly collapsed 253 | -10/Subcaves | Discovered new exit (range 14) 279 | -10/Subcaves | Entered Materials 279 | -8/Materials | Evolved 4 slots: Propulsion x2, Utility x2 302 | -8/Materials | Build established: Mutant 503 | -8/Materials | Core integrity fell below 50% 555 | -8/Materials | Lost 11 parts (2p6n1u2w) 571 | -8/Materials | Core integrity fell below 20% 576 | -8/Materials | Destroyed by Y-45 Defender with Beam Rifle Last Messages --------------- Melee Analysis Suite destroyed. Critical hit (Burn: +37). K-01 Serf collects debris. ALERT: Hostiles spotted, dispatching reinforcements to Terminal M003. K-01 Serf cleans the Hadron Collector. Critical hit (Burn: +37). Com. Wheel destroyed. Connecting with Terminal... K-01 Serf cleans the Hadron Collector. W-25 Informer sends out distress signal. Atomic Centrifuge disabled. Critical hit (Burn: +37). Com. Wheel destroyed. Slammed into R-06 Scavenger. Slammed into T-07 Excavator. %=I&4L<#C&VGQXX4D3U:0#VB Critical hit (Burn: +37). Sml. Storage Unit destroyed. Slammed into Y-45 Defender. Map ----- +----------------------------------------------------+ | ?????????????????????????????????????????????????? | | ?????????????????????????????????????????????????? | | ?????????????????????????????????????????????????? | | ?????????????????????????????????????????????????? | | ?????????????????????????????????????????????????? | | ?????????????????????????????????????????????????? | | ?????????????????????????????????????????????????? | | ?????????????????????????????????????????????????? | | ?????????????????????????????????????????????????? | | ?????????????????????????????????????????????????? | | ?????????????????????????????????????????????????? | | ?????????????????????????????????????????????????? | | ?????????????????????????????????????????????????? | | ????????????????????????????????????????#????????? | | ???????????????????????????????????????? ????????? | | ???????????????????????????????????????? ????????? | | ???????????????????????????????????????? ????????? | | ???????????????????????????????????????# #???????? | | ???????????????????????????????????????# #???????? | | ???????????????????????????????????????# #???????? | | ????????????????????????###########????# #???????? | | ????????????????????????# #????+ #???????? | | ????????????????????????# #????# #???????? | | ????????????????????##??# g###### #??????## | | ????????????????????# # ggg YY #??????# | | ????????????????????# Y@ g###### #??????#" | | ????????????????????# # ####?# #??????#T | | ????????????????????# ?# # # #??????#" | | ????????????????????#???# # # ######## | | ????????????????????????###########!= + / | | ??????????????????????????????????#== # ###### | | ??????????????????????????????????#= # #????# | | ??????????????????????????????????# ?# #????# | | ??????????????????????????????????## #?# ####### | | ???????????????????????????????????##? | | ?????????????????????????????????????? | | ?????????????????????????????????????" | | ????????????????????????????????????"Y "T" | | ????????????????????????????????????"" | | ????????????????????????????????????## """ | | ?????????????????????????????????????" ! """ | | ????????????????????????????????????? """ | | ?????????????????????????????????????" """ | | ?????????????????????????????????????# ??? | | ??????????????????????????????????????? ??? ? ? | | ?????????????????????????????????????????????? ? | | ??????????????????????????????????????????????#??# | | ?????????????????????????????????????????????????? | | ?????????????????????????????????????????????????? | | ?????????????????????????????????????????????????? | +----------------------------------------------------+ Best States ------------- Heat Dissipation 31 Energy Generation 14 Energy Capacity 140 Matter Stores 238 Matter Capacity 300 Sight Range 16 Terrain Scan Density 110 Evasion (%) 55 Melee Accuracy 5 Recoil Reduction 2 Item Schematics ----------------- None Robot Schematics ------------------ None Fabricated ------------ Nothing Repaired ---------- Nothing Alien Tech Used ----------------- None Achievements -------------- None Challenges ------------ None Game ------ Seed EfficiencyCargoBasin Manual? 0 Play Time 00:12:24 Cumulative 5.4 hours Start 2025.09.01 @ 14:25:30 End 2025.09.01 @ 14:35:27 Sessions 1 Manual Loads 0 Difficulty Rogue Special Mode None Game No. 13 Rogue 7 Adventurer 6 Explorer 0 Win Type - Total 0 Types 0/0/0/0/0/0/0/0/0/0 Lore% 4 Gallery% 8 Achievement% 7 Wizard Run 0 Options --------- Layout 1 ASCII 0 Keyboard 1 Movement Numpad Keybinds 1 Fullscreen 2 Font 24/Smallcaps Map View 50x35 Zoom Use 0% Tactical HUD 0 Map Filters NONE Filters NONE Steam 1 RUN: da9ab0ce-22df-4a7a-829d-8d7a049b2ab5